bitfinex-derivatives/quotes_BTCF0:USTF0_20251009
["timestamp","ask_amount","ask_price","bid_price","bid_amount"]
[1759968482388,0.08118401,123140.0,123130.0,0.8080355]
[1759968486290,0.10417303,123140.0,123130.0,0.8080355]
[1759968487891,0.08118401,123140.0,123130.0,0.8080355]
[1759968488484,0.08118401,123140.0,123130.0,1.5431955]
[1759968489289,0.10419269,123140.0,123130.0,1.5431955]
[1759968490286,0.0811708,123160.0,123150.0,0.013]
[1759968490592,0.0811708,123160.0,123150.0,0.03503]
[1759968491890,0.0861708,123160.0,123150.0,0.03703]
[1759968493093,0.0921708,123160.0,123150.0,0.03803]
[1759968497602,0.0921708,123160.0,123150.0,0.5192074]
[1759968497797,0.08433099,123160.0,123150.0,0.5192074]
[1759968498090,0.07802912,123180.0,123170.0,0.03503]
[1759968499793,0.08502912,123180.0,123170.0,0.03603]
[1759968500098,0.08502912,123180.0,123170.0,0.43603]
[1759968501197,0.09202912,123180.0,123170.0,0.43903]
[1759968502000,0.09202912,123180.0,123170.0,0.50273431]
[1759968502194,0.09202912,123180.0,123170.0,1.12045431]
[1759968502498,0.09202912,123180.0,123170.0,0.50273431]
[1759968502800,0.09202912,123180.0,123170.0,1.11801431]
[1759968503193,0.114859,123180.0,123170.0,0.08070431]
[1759968503396,0.114859,123180.0,123170.0,0.03070431]
[1759968503597,0.114859,123180.0,123170.0,0.03503]
[1759968506098,0.114859,123180.0,123170.0,0.013]
[1759968506296,0.114859,123180.0,123170.0,0.07949591]
[1759968508201,0.514859,123180.0,123170.0,0.06649591]
[1759968508400,0.514859,123180.0,123160.0,0.013]
[1759968508401,0.0811642,123170.0,123160.0,0.013]
[1759968509794,0.0871642,123170.0,123160.0,0.014]
[1759968510294,0.0921642,123170.0,123160.0,0.017]
[1759968511798,0.0921642,123170.0,123160.0,0.03903]
[1759968512898,0.0921642,123170.0,123160.0,0.5202008]
[1759968513097,0.0921642,123170.0,123160.0,0.43903]
[1759968513899,0.011,123170.0,123160.0,0.5202008]
[1759968514699,0.0921642,123170.0,123160.0,0.5202008]
[1759968514900,0.0921642,123170.0,123160.0,1.2558408]
[1759968516104,0.0921642,123170.0,123160.0,0.5202008]
[1759968516304,0.0921642,123170.0,123160.0,1.2558808]
[1759968516705,0.08985898,123170.0,123160.0,1.2558808]
[1759968517207,0.08985898,123170.0,123160.0,1.2558408]
[1759968519908,0.08985898,123170.0,123160.0,1.4157208]
[1759968520124,0.08985898,123170.0,123160.0,1.2557208]
[1759968520317,0.08985898,123170.0,123160.0,0.5202008]
[1759968520516,0.08985898,123170.0,123160.0,1.2557208]
[1759968521023,0.08985898,123170.0,123160.0,0.5202008]
[1759968521424,0.08985898,123170.0,123160.0,1.2556808]
[1759968521924,0.08985898,123170.0,123160.0,0.5202008]
[1759968522124,0.08985898,123170.0,123160.0,1.2556408]
[1759968522322,0.08985898,123170.0,123160.0,0.8556408]
[1759968528426,0.08985898,123170.0,123160.0,0.1202008]
[1759968528626,0.08985898,123170.0,123160.0,0.8554008]
[1759968529228,0.06149942,123180.0,123170.0,0.03475]
[1759968530427,0.07349942,123180.0,123170.0,0.03875]
[1759968530929,0.07349942,123180.0,123170.0,0.1048564]
[1759968531930,0.06849942,123180.0,123170.0,0.1038564]
[1759968532129,0.06849942,123180.0,123170.0,0.1048564]
[1759968532730,0.06849942,123180.0,123170.0,0.1088564]
[1759968533028,0.06849942,123180.0,123170.0,0.8438964]
[1759968533221,0.0881576,123180.0,123170.0,0.1900206]
[1759968533427,0.0841576,123180.0,123170.0,0.1078564]
[1759968533620,0.0861576,123180.0,123170.0,0.6340964]
[1759968534230,0.0861576,123180.0,123170.0,0.8438564]
[1759968534429,0.0861576,123180.0,123170.0,0.1088564]
[1759968534730,0.0861576,123180.0,123170.0,0.8438564]
[1759968536033,0.0861576,123180.0,123170.0,0.8438164]
[1759968539431,0.0861576,123180.0,123170.0,0.8437364]
[1759968540335,0.0861576,123180.0,123170.0,0.1088564]
[1759968540533,0.0861576,123180.0,123170.0,0.8436964]
[1759968542637,0.0861576,123180.0,123170.0,0.1088564]
[1759968542838,0.4861576,123180.0,123170.0,0.0869464]
[1759968543039,0.4861576,123180.0,123170.0,0.4871464]
[1759968543339,0.4861576,123180.0,123170.0,0.4371464]
[1759968543839,0.50906851,123180.0,123170.0,0.4371464]
[1759968544036,0.50906851,123180.0,123170.0,0.0369464]
[1759968544239,0.4861576,123180.0,123170.0,0.0369464]
[1759968544534,0.50906195,123180.0,123170.0,1e-07]
[1759968544739,0.0811708,123160.0,123150.0,0.74788]
[1759968544945,0.0811708,123160.0,123150.0,0.013]
[1759968545136,0.4811708,123160.0,123150.0,0.74792]
[1759968545841,0.4861708,123160.0,123150.0,0.77092]
[1759968546338,0.4861708,123160.0,123150.0,0.036]
[1759968546847,0.0811774,123150.0,123140.0,0.46393]
[1759968547344,0.0811774,123150.0,123140.0,0.77129]
[1759968548144,0.0861774,123150.0,123140.0,0.77729]
[1759968548944,0.0881774,123150.0,123140.0,0.78429]
[1759968549942,0.0881774,123150.0,123140.0,0.78425]
[1759968550543,0.0881774,123150.0,123140.0,0.04929]
[1759968550845,0.0881774,123150.0,123140.0,0.78425]
[1759968553646,0.0881774,123150.0,123140.0,0.04929]
[1759968554040,0.0881774,123150.0,123140.0,0.65257]
[1759968557140,0.0881774,123150.0,123140.0,0.04929]
[1759968557340,0.0881774,123150.0,123140.0,0.78409]
[1759968561042,0.0881774,123150.0,123140.0,0.04929]
[1759968561352,0.0881774,123150.0,123140.0,0.78405]
[1759968562145,0.0881774,123150.0,123140.0,0.78397]
[1759968564147,0.0881774,123150.0,123140.0,0.04929]
[1759968564345,0.0881774,123150.0,123140.0,0.34157]
[1759968564943,0.0881774,123150.0,123140.0,0.78393]
[1759968566951,0.0881774,123150.0,123140.0,0.92393]
[1759968571852,0.0881774,123150.0,123140.0,0.78393]
[1759968572250,0.0881774,123150.0,123140.0,0.89393]
[1759968572855,0.0881774,123150.0,123140.0,0.80393]
[1759968573852,0.0881774,123150.0,123140.0,0.78393]
[1759968576559,0.0881774,123150.0,123140.0,0.04929]
[1759968576759,0.0881774,123150.0,123140.0,0.68425]
[1759968577862,0.0881774,123150.0,123140.0,0.04929]
[1759968578057,0.0881774,123150.0,123140.0,0.78361]
[1759968578257,0.0881774,123150.0,123140.0,0.04929]
[1759968578459,0.0881774,123150.0,123140.0,0.78361]
[1759968578664,0.0881774,123150.0,123140.0,0.04929]
[1759968578863,0.0881774,123150.0,123140.0,0.78357]
[1759968581164,0.0881774,123150.0,123140.0,0.04929]
[1759968581368,0.0881774,123150.0,123140.0,0.78353]
[1759968585166,0.0881774,123150.0,123140.0,0.04929]
[1759968585367,0.0881774,123150.0,123140.0,0.78345]
[1759968585668,0.0881774,123150.0,123140.0,0.78341]
[1759968589767,0.0881774,123150.0,123140.0,0.04929]
[1759968589968,0.0881774,123150.0,123140.0,0.78329]
[1759968595265,0.0881774,123150.0,123140.0,1.04769]
[1759968599572,0.0881774,123150.0,123140.0,1.04749]
[1759968601376,0.0881774,123150.0,123140.0,0.88309]
[1759968601578,0.0682706,123180.0,123170.0,0.03541]
[1759968601775,0.09166423,123180.0,123170.0,0.37949]
[1759968602177,0.0682706,123180.0,123170.0,0.37949]
[1759968602377,0.0682706,123180.0,123170.0,0.44396695]
[1759968602781,0.0682706,123180.0,123170.0,0.09988695]
[1759968602982,0.0682706,123180.0,123170.0,0.66340695]
[1759968603176,0.0932706,123180.0,123170.0,0.66440695]
[1759968604282,0.0932706,123180.0,123170.0,0.10088695]
[1759968604484,0.0932706,123180.0,123170.0,0.26216695]
[1759968604683,0.0932706,123180.0,123170.0,0.10088695]
[1759968605181,0.0932706,123180.0,123170.0,0.07913695]
[1759968605385,0.5244706,123180.0,123170.0,0.02913695]
[1759968605679,0.5244706,123180.0,123170.0,0.001]
[1759968606586,0.5244706,123180.0,123170.0,0.06486662]
[1759968606988,0.5124706,123180.0,123170.0,0.08616662]
[1759968607189,0.5124706,123180.0,123170.0,0.09985662]
[1759968608282,0.1124706,123180.0,123170.0,0.09985662]
[1759968610580,0.1124706,123180.0,123170.0,0.06486662]
[1759968615093,0.1124706,123180.0,123170.0,0.01486662]
[1759968615392,0.1003642,123170.0,123160.0,0.03496]
[1759968616593,0.1033642,123170.0,123160.0,0.03596]
[1759968617393,0.1173642,123170.0,123160.0,0.03596]
[1759968647718,0.0682706,123180.0,123170.0,0.03517]
[1759968648119,0.0682706,123180.0,123170.0,0.43517]
[1759968649114,0.0822706,123180.0,123170.0,0.43617]
[1759968649824,0.0822706,123180.0,123170.0,0.50162728]
[1759968650826,0.0822706,123180.0,123170.0,1.23566728]
[1759968652524,0.0822706,123180.0,123170.0,0.50162728]
[1759968652725,0.07600735,123180.0,123170.0,0.70279148]
[1759968652919,0.00238735,123180.0,123170.0,1.42675148]
[1759968653118,1e-08,123180.0,123170.0,1.42675148]
[1759968653926,0.08115921,123180.0,123170.0,1.42675148]
[1759968654225,0.08115921,123180.0,123170.0,0.69279148]
[1759968654424,0.08115921,123180.0,123170.0,1.42675148]
[1759968655027,0.08115921,123180.0,123170.0,1.34558728]
[1759968655919,0.08115921,123180.0,123170.0,0.50162728]
[1759968656121,0.0541511,123190.0,123180.0,0.03517]
[1759968656624,0.0541511,123190.0,123180.0,0.20925]
[1759968656819,0.0541511,123190.0,123180.0,0.03517]
[1759968657226,0.0541511,123190.0,123180.0,0.28393]
[1759968657525,0.0571511,123190.0,123180.0,0.69117]
[1759968657728,0.0571511,123190.0,123180.0,0.03617]
[1759968658227,0.0571511,123190.0,123180.0,0.27329]
[1759968658828,0.0601511,123190.0,123180.0,0.28129]
[1759968659224,0.0601511,123190.0,123180.0,0.04417]
[1759968659427,0.0601511,123190.0,123180.0,0.77137]
[1759968660232,0.006,123190.0,123180.0,0.77137]
[1759968660426,0.006,123190.0,123180.0,0.04417]
[1759968660626,0.087151,123190.0,123180.0,0.77801]
[1759968660925,0.087151,123190.0,123180.0,0.04417]
[1759968661528,0.087151,123190.0,123180.0,0.47097]
[1759968661730,0.006,123190.0,123180.0,0.04417]
[1759968661926,0.006,123190.0,123180.0,0.02275]
[1759968661927,0.087151,123190.0,123180.0,0.02275]
[1759968662128,0.487151,123190.0,123180.0,0.02275]
[1759968662425,0.497631,123190.0,123170.0,0.48548728]
[1759968662634,0.097631,123190.0,123180.0,0.02142]
[1759968663229,0.097631,123190.0,123170.0,0.81296728]
[1759968663424,0.097631,123190.0,123180.0,0.02173]
[1759968663631,0.0916376,123180.0,123170.0,0.36533728]
[1759968663831,0.0916376,123180.0,123170.0,0.53385728]
[1759968664028,0.0916376,123180.0,123170.0,0.53485728]
[1759968664723,0.0946376,123180.0,123170.0,0.53485728]
[1759968665530,0.0946376,123180.0,123170.0,0.36633728]
[1759968665727,0.0946376,123180.0,123170.0,0.34460728]
[1759968665928,0.0976376,123180.0,123170.0,0.34860728]
[1759968666231,0.4976376,123180.0,123170.0,0.33485728]
[1759968666526,0.4976376,123180.0,123170.0,0.07045728]
[1759968668930,0.4976376,123180.0,123170.0,0.02045728]
[1759968669233,0.4976376,123180.0,123170.0,0.005]
[1759968669933,0.4976376,123180.0,123170.0,0.06954184]
[1759968670138,0.5207851,123180.0,123170.0,0.005]
[1759968670326,0.5207851,123180.0,123140.0,0.3593695]
[1759968670327,0.0811774,123150.0,123140.0,0.3593695]
[1759968670527,0.0916574,123150.0,123140.0,0.116704]
[1759968670728,0.01048,123150.0,123140.0,0.116704]
[1759968671132,0.01048,123150.0,123140.0,0.03552]
[1759968671133,0.0916574,123150.0,123140.0,0.03552]
[1759968671433,0.01048,123150.0,123140.0,0.116704]
[1759968671632,0.01248,123150.0,123140.0,0.129704]
[1759968672531,0.0966574,123150.0,123140.0,0.134704]
[1759968673536,0.0966574,123150.0,123140.0,0.112974]
[1759968673729,0.0966574,123150.0,123140.0,0.134704]
[1759968673930,0.0946574,123150.0,123140.0,0.121704]
[1759968674129,0.0956574,123150.0,123140.0,0.122704]
[1759968675944,0.01448,123150.0,123140.0,0.122704]
[1759968678440,0.01448,123150.0,123140.0,0.387104]
[1759968684240,0.01448,123150.0,123140.0,0.122704]
[1759968685046,0.01448,123150.0,123140.0,0.856464]
[1759968685747,0.01448,123150.0,123140.0,0.866464]
[1759968688249,0.01448,123150.0,123140.0,0.866384]
[1759968689252,0.0956574,123150.0,123140.0,0.122704]
[1759968689550,0.0956574,123150.0,123140.0,0.832384]
[1759968693554,0.01448,123150.0,123140.0,0.832384]
[1759968694161,0.01448,123150.0,123140.0,0.856344]
[1759968698652,0.004,123150.0,123140.0,0.832704]
[1759968699058,0.004,123150.0,123140.0,1.566384]
[1759968701456,0.0916376,123180.0,123170.0,0.1150737]
[1759968701663,0.11483591,123180.0,123170.0,0.1150737]
[1759968702265,0.11483591,123180.0,123170.0,0.6751937]
[1759968702765,0.12183591,123180.0,123170.0,0.09983463]
[1759968703066,0.12683591,123180.0,123170.0,0.40643463]
[1759968703264,0.12683591,123180.0,123170.0,0.07961463]
[1759968703566,0.52683591,123180.0,123170.0,0.06692463]
[1759968703767,0.52683591,123180.0,123170.0,0.001]
[1759968705968,0.01048,123160.0,123150.0,0.3640035]
[1759968706370,0.0916508,123160.0,123150.0,0.3640035]
[1759968707362,0.0916508,123160.0,123150.0,0.8491635]
[1759968707570,0.0916508,123160.0,123150.0,0.76799]
[1759968707871,0.0916508,123160.0,123150.0,0.8491274]
[1759968708165,0.01248,123160.0,123150.0,0.1164074]
[1759968708370,0.01248,123160.0,123150.0,0.8501274]
[1759968708568,0.01548,123160.0,123150.0,0.1204074]
[1759968708868,0.01548,123160.0,123150.0,0.8121274]
[1759968714579,0.0966508,123160.0,123150.0,0.8121274]
[1759968714877,0.01548,123160.0,123150.0,0.8121274]
[1759968715278,0.01548,123160.0,123150.0,1.18825722]
[1759968717682,0.01548,123160.0,123150.0,1.00019231]
[1759968719785,0.01548,123160.0,123150.0,0.8121274]
[1759968719986,0.01548,123160.0,123150.0,1.00019231]
[1759968720185,0.01548,123160.0,123150.0,0.1204074]
[1759968720387,0.01548,123160.0,123150.0,1.04199231]
[1759968720887,0.01548,123160.0,123150.0,0.30847231]
[1759968721084,0.01548,123160.0,123150.0,1.04199231]
[1759968721488,0.01548,123160.0,123150.0,0.30847231]
[1759968721690,0.01548,123160.0,123150.0,1.04199231]
[1759968723188,0.01548,123160.0,123150.0,1.30639231]
[1759968726590,0.01548,123160.0,123150.0,0.57287231]
[1759968726783,0.01548,123160.0,123150.0,1.04199231]
[1759968727596,0.01548,123160.0,123150.0,0.49653722]
[1759968727789,0.005,123160.0,123150.0,0.89653722]
[1759968728187,0.005,123160.0,123150.0,1.63005722]
[1759968730197,0.005,123160.0,123150.0,0.89653722]
[1759968730395,0.005,123160.0,123150.0,1.63005722]
[1759968735800,0.005,123160.0,123150.0,0.89653722]
[1759968736000,0.01548,123160.0,123150.0,0.89653722]
[1759968736197,0.01548,123160.0,123150.0,1.63005722]
[1759968736500,0.01548,123160.0,123150.0,0.89653722]
[1759968736701,0.01548,123160.0,123150.0,1.63005722]
[1759968736898,0.01548,123160.0,123150.0,0.89653722]
[1759968737100,0.01548,123160.0,123150.0,1.63005722]
[1759968737403,0.01548,123160.0,123150.0,0.89653722]
[1759968737594,0.01548,123160.0,123150.0,1.63005722]
[1759968737900,0.01548,123160.0,123150.0,0.89653722]
[1759968738101,0.01548,123160.0,123150.0,1.63005722]
[1759968738298,0.01548,123160.0,123150.0,0.89653722]
[1759968738502,0.01548,123160.0,123150.0,1.63005722]
[1759968744005,0.01548,123160.0,123150.0,0.89653722]
[1759968744302,0.01548,123160.0,123150.0,1.63005722]
[1759968745101,0.01548,123160.0,123150.0,0.89653722]
[1759968745308,0.01548,123160.0,123150.0,1.63005722]
[1759968748097,0.01422678,123160.0,123150.0,1.63005722]
[1759968748605,0.01422678,123160.0,123150.0,0.89653722]
[1759968748801,0.01422678,123160.0,123150.0,1.63005722]
[1759968751417,0.01422678,123160.0,123150.0,0.89653722]
[1759968751620,0.01422678,123160.0,123150.0,1.63005722]
[1759968752511,0.00374678,123160.0,123150.0,1.63005722]
[1759968755914,0.00374678,123160.0,123150.0,1.50465249]
[1759968756410,0.0811648,123170.0,123160.0,0.1163808]
[1759968756616,0.0916448,123170.0,123160.0,0.36710589]
[1759968757515,0.0916448,123170.0,123160.0,1.10062589]
[1759968757715,0.0946448,123170.0,123160.0,0.37010589]
[1759968757916,0.0946448,123170.0,123160.0,1.04790589]
[1759968758422,0.0976448,123170.0,123160.0,1.04890589]
[1759968760120,0.0976448,123170.0,123160.0,1.16871422]
[1759968760521,0.0976448,123170.0,123160.0,0.49091422]
[1759968760723,0.0976448,123170.0,123160.0,1.22443422]
[1759968761322,0.0976448,123170.0,123160.0,0.49091422]
[1759968761525,0.0976448,123170.0,123160.0,1.22443422]
[1759968762625,0.0976448,123170.0,123160.0,0.49091422]
[1759968762924,0.0976448,123170.0,123160.0,1.22439422]
[1759968771734,0.0976448,123170.0,123160.0,0.49091422]
[1759968771935,0.0976448,123170.0,123160.0,1.22439422]
[1759968780843,0.0976448,123170.0,123160.0,0.49091422]
[1759968781144,0.0976448,123170.0,123160.0,1.22439422]
[1759968784948,0.0976448,123170.0,123160.0,0.24018913]
[1759968785148,0.0976448,123170.0,123160.0,0.62153833]
[1759968785449,0.0976448,123170.0,123160.0,1.14322342]
[1759968785748,0.0976448,123170.0,123160.0,0.40974342]
[1759968785952,0.0976448,123170.0,123160.0,1.14186342]
[1759968786245,0.0976448,123170.0,123160.0,1.14322342]
[1759968786846,0.0976448,123170.0,123160.0,0.40974342]
[1759968787246,0.0976448,123170.0,123160.0,1.12974342]
[1759968791452,0.0976448,123170.0,123160.0,1.39414342]
[1759968791951,0.0976448,123170.0,123160.0,1.47531422]
[1759968792351,0.0976448,123170.0,123160.0,0.75531422]
[1759968792547,0.0976448,123170.0,123160.0,1.48879422]
[1759968792752,0.0976448,123170.0,123160.0,0.75531422]
[1759968793152,0.06933287,123180.0,123160.0,1.48879422]
[1759968793356,0.06401221,123190.0,123180.0,0.03528]
[1759968793557,0.08712284,123190.0,123180.0,0.28600509]
[1759968794756,0.08712284,123190.0,123180.0,0.28400509]
[1759968794956,0.09312284,123190.0,123180.0,0.28500509]
[1759968795656,0.09312284,123190.0,123180.0,1.01844509]
[1759968795856,0.09312284,123190.0,123180.0,1.09960269]
[1759968796059,0.09312284,123190.0,123180.0,0.36616269]
[1759968796258,0.09612284,123190.0,123180.0,1.10260269]
[1759968797758,0.07301221,123190.0,123180.0,1.10260269]
[1759968804466,0.07301221,123190.0,123180.0,0.36916269]
[1759968804663,0.07301221,123190.0,123180.0,0.8295276]
[1759968804864,0.07301221,123190.0,123180.0,1.08025269]
[1759968808770,0.07301221,123190.0,123180.0,0.36916269]
[1759968808970,0.07301221,123190.0,123180.0,1.10256269]
[1759968817974,0.07301221,123190.0,123180.0,1.2278526]
[1759968821080,0.09613638,123190.0,123180.0,1.2278526]
[1759968821581,0.07301221,123190.0,123180.0,1.2278526]
[1759968822082,0.09614089,123190.0,123180.0,1.2278526]
[1759968822477,0.09614089,123190.0,123180.0,0.4944526]
[1759968822675,0.09614089,123190.0,123180.0,1.2278126]
[1759968827474,0.09615321,123190.0,123180.0,1.2278126]
[1759968827687,0.032141,123190.0,123180.0,0.4944526]
[1759968827882,0.032141,123190.0,123180.0,1.2277726]
[1759968829585,0.113292,123190.0,123180.0,1.2277726]
[1759968830084,0.113292,123190.0,123180.0,0.4944526]
[1759968830283,0.113292,123190.0,123180.0,1.2277726]
[1759968831786,0.090151,123190.0,123180.0,1.2277726]
[1759968832088,0.090151,123190.0,123180.0,0.4944526]
[1759968832288,0.090151,123190.0,123180.0,1.2277726]
[1759968833088,0.11331544,123190.0,123180.0,1.2277726]
[1759968833290,0.090151,123190.0,123180.0,1.2277726]
[1759968835690,0.090151,123190.0,123180.0,0.4944526]
[1759968835891,0.090151,123190.0,123180.0,1.2277726]
[1759968837094,0.090151,123190.0,123180.0,0.4944526]
[1759968837493,0.090151,123190.0,123180.0,1.2277726]
[1759968840999,0.090151,123190.0,123180.0,0.4944526]
[1759968841297,0.090151,123190.0,123180.0,1.2277326]
[1759968842798,0.090151,123190.0,123180.0,0.4944526]
[1759968843000,0.090151,123190.0,123180.0,1.2277326]
[1759968844901,0.090151,123190.0,123180.0,0.4944526]
[1759968845102,0.090151,123190.0,123180.0,1.2277326]
[1759968846000,0.11331689,123190.0,123180.0,1.2277326]
[1759968848904,0.11331689,123190.0,123180.0,0.4944526]
[1759968849603,0.11331689,123190.0,123180.0,1.2277326]
[1759968849898,0.11331689,123190.0,123180.0,0.1184376]
[1759968850099,0.11331689,123190.0,123180.0,1.0174151]
[1759968850100,0.30132439,123190.0,123180.0,1.0174151]
[1759968850300,0.31578439,123190.0,123180.0,0.9674151]
[1759968850605,0.31578439,123190.0,123180.0,0.9894351]
[1759968850904,0.2926185,123190.0,123180.0,0.9893951]
[1759968851305,0.2926185,123190.0,123180.0,1.0030551]
[1759968853404,0.2926185,123190.0,123180.0,0.2698151]
[1759968853605,0.2926185,123190.0,123180.0,1.0030551]
[1759968857309,0.104611,123190.0,123180.0,1.1910626]
[1759968857605,0.2926185,123190.0,123180.0,0.2698151]
[1759968857807,0.2926185,123190.0,123180.0,1.0030551]
[1759968858105,0.2926185,123190.0,123180.0,1.1910626]
[1759968859104,0.104611,123190.0,123180.0,1.1910626]
[1759968860906,0.0811358,123220.0,123200.0,0.081139]
[1759968861210,0.11747499,123220.0,123210.0,0.1736875]
[1759968861410,0.30548249,123220.0,123210.0,0.3048253]
[1759968861611,0.11747499,123220.0,123210.0,0.3048253]
[1759968862413,0.11747499,123220.0,123210.0,0.1168178]
[1759968862608,0.03634369,123220.0,123210.0,0.4928328]
[1759968862807,0.03634369,123220.0,123210.0,1.2260728]
[1759968863008,0.04234369,123220.0,123210.0,0.4958328]
[1759968863207,0.01918,123220.0,123210.0,1.2290728]
[1759968863613,0.02618,123220.0,123210.0,1.2290728]
[1759968863907,0.02018,123220.0,123210.0,1.2260728]
[1759968864113,0.02318,123220.0,123210.0,1.0460653]
[1759968864308,0.01718,123220.0,123210.0,1.0470653]
[1759968864507,0.01418,123220.0,123210.0,1.0390653]
[1759968864713,0.01718,123220.0,123210.0,1.0500653]
[1759968865013,0.01718,123220.0,123210.0,0.3168253]
[1759968865201,0.01718,123220.0,123210.0,1.0500253]
[1759968865406,0.01718,123220.0,123210.0,1.2380328]
[1759968865711,0.01718,123220.0,123210.0,1.30286522]
[1759968865904,0.01718,123220.0,123210.0,1.11485772]
[1759968866712,0.01718,123220.0,123210.0,1.13335983]
[1759968867112,0.01718,123220.0,123210.0,1.32136733]
[1759968867614,0.01718,123220.0,123210.0,1.13335983]
[1759968868515,0.01718,123220.0,123210.0,1.32136733]
[1759968868815,0.01718,123220.0,123210.0,1.32132733]
[1759968870509,0.01718,123220.0,123210.0,1.72132733]
[1759968870710,0.01718,123220.0,123210.0,1.72128733]
[1759968871109,0.004,123220.0,123210.0,1.72128733]
[1759968872615,0.004,123220.0,123210.0,0.98816733]
[1759968872816,0.01718,123220.0,123210.0,1.72128733]
[1759968877715,0.01718,123220.0,123210.0,0.98816733]
[1759968877911,0.01718,123220.0,123210.0,1.59569499]
[1759968878317,0.01718,123220.0,123210.0,1.34519233]
[1759968878516,0.01718,123220.0,123210.0,1.59569499]
[1759968882320,0.01718,123220.0,123210.0,1.19569499]
[1759968882819,0.01718,123220.0,123210.0,0.46265499]
[1759968883020,0.01718,123220.0,123210.0,1.19569499]
[1759968886611,0.01718,123220.0,123210.0,0.46265499]
[1759968886822,0.01718,123220.0,123210.0,1.19565499]
[1759968889224,0.01718,123220.0,123210.0,0.46265499]
[1759968889424,0.01718,123220.0,123210.0,1.19565499]
[1759968892323,0.01718,123220.0,123210.0,0.46265499]
[1759968892728,0.01718,123220.0,123210.0,1.19561499]
[1759968893330,0.01718,123220.0,123210.0,0.46265499]
[1759968893530,0.01718,123220.0,123210.0,1.19561499]
[1759968900232,0.01718,123220.0,123210.0,0.46265499]
[1759968900432,0.01718,123220.0,123210.0,1.19561499]
[1759968902338,0.01718,123220.0,123210.0,0.46265499]
[1759968902728,0.01718,123220.0,123210.0,1.19557499]
[1759968903036,0.01718,123220.0,123210.0,0.46265499]
[1759968903331,0.01718,123220.0,123210.0,1.19557499]
[1759968904435,0.01718,123220.0,123210.0,1.45997499]
[1759968904639,0.01718,123220.0,123210.0,1.20947233]
[1759968904828,0.01718,123220.0,123210.0,1.45997499]
[1759968905833,0.01718,123220.0,123210.0,0.47655233]
[1759968906041,0.04018859,123220.0,123210.0,1.20947233]
[1759968906232,0.04018821,123220.0,123210.0,1.45997499]
[1759968906536,0.04018821,123220.0,123210.0,1.19557499]
[1759968907138,0.04018821,123220.0,123210.0,0.46265499]
[1759968907439,0.04018659,123220.0,123210.0,0.46265499]
[1759968907640,0.04018659,123220.0,123210.0,1.19557499]
[1759968908240,0.04018266,123220.0,123210.0,1.19557499]
[1759968910139,0.01718,123220.0,123210.0,0.46265499]
[1759968910338,0.01718,123220.0,123210.0,1.19557499]
[1759968914744,0.01718,123220.0,123210.0,0.46265499]
[1759968914945,0.004,123220.0,123210.0,1.19557499]
[1759968916243,0.1025277,123260.0,123250.0,0.0811115]
[1759968916543,0.03617596,123260.0,123250.0,0.3480707]
[1759968917040,0.03617596,123260.0,123250.0,0.3420707]
[1759968917246,0.03617596,123260.0,123250.0,0.1160415]
[1759968917445,0.04217596,123260.0,123250.0,0.1170415]
[1759968917942,0.04217596,123260.0,123250.0,1.10046416]
[1759968918138,0.02118,123260.0,123250.0,0.37154416]
[1759968918338,0.008,123260.0,123250.0,1.10446416]
[1759968918639,0.008,123260.0,123250.0,0.37154416]
[1759968918944,0.008,123260.0,123250.0,1.50446416]
[1759968919243,0.008,123260.0,123250.0,0.77154416]
[1759968919545,0.01318,123290.0,123280.0,0.1160161]
[1759968919734,0.03614648,123290.0,123280.0,0.36651876]
[1759968919942,0.03614648,123290.0,123280.0,0.28543266]
[1759968920136,0.03614675,123290.0,123280.0,0.36651886]
[1759968920343,0.01318,123290.0,123280.0,0.36651886]
[1759968920543,0.0942652,123290.0,123280.0,0.36651886]
[1759968920748,0.0942652,123290.0,123280.0,0.1160162]
[1759968920945,0.0962652,123290.0,123280.0,0.1170162]
[1759968921546,0.0992652,123290.0,123280.0,0.1270162]
[1759968921953,0.0992652,123290.0,123280.0,0.14541734]
[1759968922352,0.0992652,123290.0,123280.0,0.39592]
[1759968922353,0.01818,123290.0,123280.0,0.39592]
[1759968922550,0.0992652,123290.0,123280.0,0.39592]
[1759968925350,0.0992652,123290.0,123280.0,0.14541734]
[1759968925750,0.0992652,123290.0,123280.0,0.39592]
[1759968925946,0.0992652,123290.0,123280.0,0.3148338]
[1759968926157,0.0992652,123290.0,123280.0,0.02940114]
[1759968926353,0.74976786,123290.0,123280.0,0.02940114]
[1759968926556,0.77268408,123290.0,123280.0,0.02940114]
[1759968926756,0.01318,123270.0,123260.0,0.1601219]
[1759968927059,0.0942783,123270.0,123260.0,0.1822719]
[1759968927259,0.0942783,123270.0,123260.0,0.43277456]
[1759968928153,0.0952783,123270.0,123260.0,0.36953456]
[1759968928358,0.0982783,123270.0,123260.0,1.11529456]
[1759968928659,0.0982783,123270.0,123260.0,0.8647519]
[1759968929159,0.0982783,123270.0,123260.0,0.88106537]
[1759968929464,0.0982783,123270.0,123260.0,1.13156803]
[1759968929756,0.0982783,123270.0,123260.0,0.29559613]
[1759968929962,0.0982783,123270.0,123260.0,0.03231347]
[1759968929963,0.74878096,123270.0,123260.0,0.03231347]
[1759968930354,0.0942849,123260.0,123250.0,0.06562241]
[1759968930559,0.0942981,123250.0,123240.0,0.0811174]
[1759968930861,0.0942981,123250.0,123240.0,0.1032674]
[1759968931061,0.0942981,123250.0,123240.0,0.1160474]
[1759968931763,0.0982981,123250.0,123240.0,0.1400474]
[1759968932367,0.0982981,123250.0,123240.0,0.39055006]
[1759968932667,0.0972981,123250.0,123240.0,0.37255006]
[1759968932968,0.0972981,123250.0,123240.0,0.38877543]
[1759968933263,0.0982981,123250.0,123240.0,0.38977543]
[1759968934664,0.0982981,123250.0,123240.0,0.13927277]
[1759968936265,0.01718,123250.0,123240.0,0.13927277]
[1759968936771,0.01718,123250.0,123240.0,0.38977543]
[1759968937867,0.01718,123250.0,123240.0,0.51490885]
[1759968938356,0.01718,123250.0,123240.0,0.13927277]
[1759968938561,0.0982915,123250.0,123240.0,0.51490885]
[1759968940969,0.0982915,123250.0,123240.0,0.13927277]
[1759968941162,0.0982915,123250.0,123240.0,0.51490885]
[1759968942767,0.28610954,123250.0,123240.0,0.51490885]
[1759968942964,0.68610954,123250.0,123240.0,0.02322537]
[1759968943166,0.0811181,123240.0,123230.0,1.01455804]
[1759968943365,0.26893614,123240.0,123230.0,1.01455804]
[1759968943966,0.0811247,123230.0,123220.0,0.20059804]
[1759968944265,0.28212274,123230.0,123220.0,0.30318444]
[1759968944470,0.28212274,123230.0,123220.0,0.0939064]
[1759968944662,0.28212274,123230.0,123220.0,0.0939113]
[1759968945761,0.29612274,123230.0,123220.0,0.0811313]